[Event "23rd Alekhine FIDE 2019"]
[Site "Voronezh"]
[Date "2019.06.15"]
[Round "4.7"]
[White "Shaydullina, Sandugach"]
[Black "Chernov, Vladimir S"]
[Result "0-1"]
[ECO "D15"]
[WhiteElo "2128"]
[BlackElo "1999"]
[Annotator "ChessBase"]
[PlyCount "136"]
[EventDate "2019.06.12"]
[EventType "swiss"]
[EventCountry "RUS"]
[SourceTitle "playchess.com"]
[Source "ChessBase"]
[SourceQuality "1"]
[TimeControl "40/5400+30:1800+30"]

1. d4 {[%emt 0:10:03]} d5 {[%emt 0:00:00]} 2. c4 {[%emt 0:00:17]} c6 {[%emt 0:00:00]} 3. Nf3 {[%emt 0:00:06]} Nf6 {[%emt 0:00:00]} 4. Nc3 {[%emt 0:00:24]} dxc4 {[%emt 0:00:00]} 5. e4 {[%emt 0:01:29]} b5 {[%emt 0:00:00]} 6. Be2 {[%emt 0:00:21]} e6 {[%emt 0:02:47]} 7. O-O {[%emt 0:00:17]} Bb4 {[%emt 0:00:18]} 8. e5 {[%emt 0:00:29]} Nd5 {[%emt 0:00:18]} 9. Ne4 {[%emt 0:00:08]} h6 {[%emt 0:01:54]} 10. a4 {[%emt 0:01:04]} O-O {[%emt 0:02:11]} 11. axb5 {[%emt 0:03:08]} cxb5 {[%emt 0:00:02]} 12. b3 {[%emt 0:00:52]} Nc3 {[%emt 0:01:16]} 13. Nxc3 {[%emt 0:00:25]} Bxc3 {[%emt 0:00:02]} 14. Ra2 {[%emt 0:00:07]} cxb3 {[%emt 0:01:55]} 15. Qxb3 {[%emt 0:00:04]} b4 {[%emt 0:00:05]} 16. Bd2 {[%emt 0:03:07]} Bxd2 {[%emt 0:01:40]} 17. Nxd2 {[%emt 0:00:17]} Nc6 {[%emt 0:01:30]} 18. Bf3 {[%emt 0:03:51]} Nxd4 {[%emt 0:00:39]} 19. Qxb4 {[%emt 0:00:05]} Nxf3+ {[%emt 0:00:07]} 20. Nxf3 {[%emt 0:00:03]} a5 {[%emt 0:02:39]} 21. Qe4 {[%emt 0:00:10]} Bd7 {[%emt 0:05:49]} 22. h4 {[%emt 0:00:57]} Qc7 {[%emt 0:03:33]} 23. Rc2 {[%emt 0:00:23]} Qa7 {[%emt 0:03:58]} 24. Rc3 {[%emt 0:04:17]} Rfc8 {[%emt 0:01:30]} 25. Re3 {[%emt 0:00:32]} Bc6 {[%emt 0:00:52]} 26. Qf4 {[%emt 0:00:06]} Bxf3 {[%emt 0:00:48]} 27. Rxf3 {[%emt 0:00:05]} Qe7 {[%emt 0:08:36]} 28. Rg3 {[%emt 0:00:58]} Kh8 {[%emt 0:01:08]} 29. Ra1 {[%emt 0:02:15]} Rc5 {[%emt 0:11:36]} 30. Ra4 {[%emt 0:06:25]} Rb8 {[%emt 0:07:31]} 31. Qg4 {[%emt 0:02:19]} Qf8 {[%emt 0:01:21]} 32. Re3 {[%emt 0:03:08]} Rb4 {[%emt 0:02:58]} 33. Re4 {[%emt 0:01:25]} Rxa4 {[%emt 0:00:12]} 34. Rxa4 {[%emt 0:00:07]} Rxe5 {[%emt 0:00:44]} 35. Qd4 {[%emt 0:00:55]} Rd5 {[%emt 0:02:56]} 36. Qb6 {[%emt 0:00:06]} Qc5 {[%emt 0:01:26]} 37. Qb8+ {[%emt 0:00:11]} Kh7 {[%emt 0:00:06]} 38. Qb1+ {[%emt 0:00:08]} f5 {[%emt 0:00:29]} 39. Qe1 {[%emt 0:02:33]} Qd6 {[%emt 0:00:59]} 40. Ra1 {[%emt 0:00:26]} a4 {[%emt 0:00:10]} 41. g3 {[%emt 0:30:41]} a3 {[%emt 0:30:11]} 42. h5 {[%emt 0:00:10]} a2 {[%emt 0:01:23]} 43. Kh2 {[%emt 0:01:27]} Rd2 {[%emt 0:00:19]} 44. Qe3 {[%emt 0:00:06]} Rb2 {[%emt 0:02:09]} 45. Qa7 {[%emt 0:04:27]} Qd5 {[%emt 0:02:35]} 46. Re1 {[%emt 0:02:32]} Rb7 {[%emt 0:00:46]} 47. Qa4 {[%emt 0:01:15]} Rb2 {[%emt 0:04:13]} 48. Qa7 {[%emt 0:03:17]} Qf3 {[%emt 0:00:27]} 49. Rf1 {[%emt 0:00:38]} Qxh5+ {[%emt 0:00:48]} 50. Kg2 {[%emt 0:00:01]} Qg4 {[%emt 0:01:03]} 51. Qa3 {[%emt 0:02:18]} Qd4 {[%emt 0:00:12]} 52. Qa6 {[%emt 0:06:19]} Rxf2+ {[%emt 0:00:16]} 53. Rxf2 {[%emt 0:00:44]} a1=Q {[%emt 0:00:03]} 54. Qxe6 {[%emt 0:00:51]} Qe4+ {[%emt 0:00:07]} 55. Qxe4 {[%emt 0:00:06]} fxe4 {[%emt 0:00:05]} 56. Re2 {[%emt 0:00:03]} Qd4 {[%emt 0:00:06]} 57. g4 {[%emt 0:00:07]} Qd3 {[%emt 0:00:06]} 58. Kf2 {[%emt 0:01:19]} Qf3+ {[%emt 0:00:08]} 59. Ke1 {[%emt 0:00:04]} e3 {[%emt 0:00:10]} 60. Rc2 {[%emt 0:00:33]} Qh1+ {[%emt 0:00:07]} 61. Ke2 {[%emt 0:00:08]} Qg1 {[%emt 0:00:18]} 62. Kf3 {[%emt 0:00:21]} Kg6 {[%emt 0:00:32]} 63. Rc6+ {[%emt 0:00:44]} Kf7 {[%emt 0:00:12]} 64. Rc7+ {[%emt 0:00:18]} Ke6 {[%emt 0:00:05]} 65. Rc2 {[%emt 0:02:45]} Kd5 {[%emt 0:00:08]} 66. g5 {[%emt 0:01:07]} hxg5 {[%emt 0:00:19]} 67. Rg2 {[%emt 0:03:18]} Qf1+ {[%emt 0:00:14]} 68. Kg3 {[%emt 0:00:56]} Qf4+ {[%emt 0:00:06]} 0-1

[Event "23rd Alekhine FIDE 2019"]
[Site "Voronezh"]
[Date "2019.06.15"]
[Round "4.8"]
[White "Polukhin, Alexander"]
[Black "Beldyugin, Alexey"]
[Result "1/2-1/2"]
[ECO "B01"]
[WhiteElo "1968"]
[BlackElo "2126"]
[Annotator "ChessBase"]
[PlyCount "186"]
[EventDate "2019.06.12"]
[EventType "swiss"]
[EventCountry "RUS"]
[SourceTitle "playchess.com"]
[Source "ChessBase"]
[SourceQuality "1"]
[TimeControl "40/5400+30:1800+30"]

1. e4 {[%emt 0:00:00]} d5 {[%emt 0:00:45]} 2. exd5 {[%emt 0:00:00]} Qxd5 {[%emt 0:00:09]} 3. Nc3 {[%emt 0:00:16]} Qd8 {[%emt 0:00:14]} 4. g3 {[%emt 0:02:01]} Nf6 {[%emt 0:00:22]} 5. Bg2 {[%emt 0:00:28]} c6 {[%emt 0:00:43]} 6. Nf3 {[%emt 0:00:44]} Bg4 {[%emt 0:00:24]} 7. O-O {[%emt 0:00:52]} g6 {[%emt 0:00:15]} 8. Re1 {[%emt 0:01:46]} Bg7 {[%emt 0:00:18]} 9. Qe2 {[%emt 0:01:49]} e6 {[%emt 0:01:54]} 10. d3 {[%emt 0:12:09]} O-O {[%emt 0:00:21]} 11. Ne4 {[%emt 0:04:14]} Nbd7 {[%emt 0:03:48]} 12. Nxf6+ {[%emt 0:05:52]} Nxf6 {[%emt 0:01:59]} 13. Bg5 {[%emt 0:02:47]} h6 {[%emt 0:00:24]} 14. Bxf6 {[%emt 0:00:58]} Qxf6 {[%emt 0:00:16]} 15. c3 {[%emt 0:02:51]} Rfd8 {[%emt 0:01:45]} 16. d4 {[%emt 0:02:06]} Rd6 {[%emt 0:00:57]} 17. h3 {[%emt 0:02:09]} Bxf3 {[%emt 0:00:12]} 18. Qxf3 {[%emt 0:00:17]} Qg5 {[%emt 0:00:49]} 19. h4 {[%emt 0:02:14]} Qb5 {[%emt 0:00:18]} 20. Rab1 {[%emt 0:01:14]} Rad8 {[%emt 0:01:02]} 21. Bf1 {[%emt 0:06:05]} Qd5 {[%emt 0:01:46]} 22. Qxd5 {[%emt 0:01:06]} cxd5 {[%emt 0:00:11]} 23. f4 {[%emt 0:02:32]} Rc8 {[%emt 0:00:16]} 24. Kf2 {[%emt 0:01:00]} Rb6 {[%emt 0:00:39]} 25. Kf3 {[%emt 0:01:31]} Bf6 {[%emt 0:00:24]} 26. Bd3 {[%emt 0:01:41]} a5 {[%emt 0:00:15]} 27. Kg2 {[%emt 0:04:24]} Kg7 {[%emt 0:01:53]} 28. Rh1 {[%emt 0:01:27]} Re8 {[%emt 0:04:14]} 29. Rhe1 {[%emt 0:02:38]} Rh8 {[%emt 0:01:36]} 30. Rh1 {[%emt 0:00:52]} Bd8 {[%emt 0:03:05]} 31. a4 {[%emt 0:02:35]} Rc6 {[%emt 0:00:43]} 32. Rbe1 {[%emt 0:01:18]} Rb6 {[%emt 0:02:45]} 33. Bb5 {[%emt 0:01:13]} g5 {[%emt 0:01:22]} 34. hxg5 {[%emt 0:01:51]} hxg5 {[%emt 0:00:06]} 35. Rxh8 {[%emt 0:00:42]} Kxh8 {[%emt 0:00:01]} 36. Kf3 {[%emt 0:04:55]} Kg7 {[%emt 0:00:16]} 37. Re2 {[%emt 0:00:59]} Bf6 {[%emt 0:03:47]} 38. Kg4 {[%emt 0:01:36]} gxf4 {[%emt 0:00:10]} 39. gxf4 {[%emt 0:00:09]} Kf8 {[%emt 0:02:08]} 40. Rg2 {[%emt 0:03:41]} Rd6 {[%emt 0:00:25]} 41. Kf3 {[%emt 0:32:45]} Rd8 {[%emt 0:30:14]} 42. Rh2 {[%emt 0:02:48]} Ke7 {[%emt 0:00:31]} 43. Rh1 {[%emt 0:00:42]} Bg7 {[%emt 0:01:07]} 44. Bd3 {[%emt 0:02:02]} Kf6 {[%emt 0:00:12]} 45. Rh7 {[%emt 0:01:47]} Rg8 {[%emt 0:00:27]} 46. Rh1 {[%emt 0:02:23]} Bf8 {[%emt 0:00:18]} 47. Bb5 {[%emt 0:00:51]} Bd6 {[%emt 0:00:16]} 48. Bd3 {[%emt 0:00:46]} Ke7 {[%emt 0:00:24]} 49. Bf1 {[%emt 0:02:48]} Rg7 {[%emt 0:02:14]} 50. Rh4 {[%emt 0:00:55]} Kd7 {[%emt 0:02:30]} 51. Kf2 {[%emt 0:01:28]} Kc6 {[%emt 0:04:17]} 52. Bb5+ {[%emt 0:00:28]} Kc7 {[%emt 0:00:12]} 53. Bd3 {[%emt 0:00:43]} Kd7 {[%emt 0:01:50]} 54. Bf1 {[%emt 0:00:46]} Be7 {[%emt 0:01:45]} 55. Rh1 {[%emt 0:00:28]} Bd6 {[%emt 0:07:19]} 56. Rh4 {[%emt 0:00:09]} f6 {[%emt 0:00:37]} 57. Bd3 {[%emt 0:01:41]} Ke7 {[%emt 0:01:09]} 58. Be2 {[%emt 0:00:45]} b6 {[%emt 0:00:38]} 59. Bf1 {[%emt 0:00:51]} e5 {[%emt 0:01:39]} 60. fxe5 {[%emt 0:00:43]} fxe5 {[%emt 0:01:12]} 61. dxe5 {[%emt 0:00:17]} Bxe5 {[%emt 0:02:30]} 62. Rh5 {[%emt 0:00:27]} Rf7+ {[%emt 0:00:39]} 63. Kg2 {[%emt 0:01:15]} Rg7+ {[%emt 0:00:20]} 64. Kh1 {[%emt 0:01:46]} Kd6 {[%emt 0:00:14]} 65. Rh6+ {[%emt 0:02:16]} Kc5 {[%emt 0:00:11]} 66. Rh5 {[%emt 0:01:12]} Kd6 {[%emt 0:01:22]} 67. Rh6+ {[%emt 0:00:04]} Kc7 {[%emt 0:00:17]} 68. Bg2 {[%emt 0:01:27]} d4 {[%emt 0:04:52]} 69. cxd4 {[%emt 0:00:28]} Bxd4 {[%emt 0:00:11]} 70. b3 {[%emt 0:00:16]} Be3 {[%emt 0:01:10]} 71. Rh3 {[%emt 0:00:24]} Re7 {[%emt 0:00:26]} 72. Bd5 {[%emt 0:00:31]} Kd6 {[%emt 0:00:08]} 73. Bc4 {[%emt 0:00:12]} Kc5 {[%emt 0:00:03]} 74. Kg2 {[%emt 0:00:50]} Kb4 {[%emt 0:00:11]} 75. Kf3 {[%emt 0:00:47]} Bd4 {[%emt 0:00:31]} 76. Kf4 {[%emt 0:00:45]} Bc3 {[%emt 0:00:15]} 77. Rd3 {[%emt 0:01:14]} Re1 {[%emt 0:00:35]} 78. Rd5 {[%emt 0:00:22]} Ka3 {[%emt 0:00:22]} 79. Rb5 {[%emt 0:00:28]} Bd4 {[%emt 0:00:25]} 80. Rd5 {[%emt 0:00:07]} Be3+ {[%emt 0:00:13]} 81. Ke4 {[%emt 0:00:32]} Bc5+ {[%emt 0:00:11]} 82. Kd3 {[%emt 0:00:20]} Kb2 {[%emt 0:00:22]} 83. Kd2 {[%emt 0:01:14]} Bb4+ 84. Kd3 Rc1 {[%emt 0:02:57]} 85. Rh5 {[%emt 0:01:08]} Rc3+ {[%emt 0:01:02]} 86. Kd4 {[%emt 0:00:13]} Bc5+ {[%emt 0:02:49]} 87. Rxc5 {[%emt 0:01:03]} bxc5+ {[%emt 0:00:10]} 88. Kxc5 {[%emt 0:00:02]} Rh3 {[%emt 0:00:20]} 89. Kb6 {[%emt 0:00:11]} Rh5 {[%emt 0:00:32]} 90. Bb5 {[%emt 0:00:38]} Kxb3 {[%emt 0:00:21]} 91. Kxa5 {[%emt 0:00:13]} Rh6 {[%emt 0:01:13]} 92. Be2 {[%emt 0:00:49]} Re6 {[%emt 0:00:29]} 93. Bc4+ {[%emt 0:00:12]} Kxc4 {[%emt 0:00:08]} 1/2-1/2

[Event "23rd Alekhine FIDE 2019"]
[Site "Voronezh"]
[Date "2019.06.15"]
[Round "4.9"]
[White "Ioffe, Evgeny"]
[Black "Krupin, Victor"]
[Result "1/2-1/2"]
[ECO "C03"]
[WhiteElo "2082"]
[BlackElo "1958"]
[Annotator "NA"]
[PlyCount "214"]
[EventDate "2019.06.12"]
[EventType "swiss"]
[EventCountry "RUS"]
[SourceTitle "playchess.com"]
[Source "ChessBase"]
[SourceQuality "1"]
[TimeControl "40/5400+30:1800+30"]

1. e4 {[%emt 0:00:00]} e6 {[%emt 0:00:00]} 2. d4 {[%emt 0:00:00]} d5 {[%emt 0:00:00]} 3. Nd2 {[%emt 0:00:00]} a6 {[%emt 0:00:00]} 4. c3 {[%emt 0:02:36]} c5 {[%emt 0:00:12]} 5. exd5 {[%emt 0:01:24]} exd5 {[%emt 0:00:15]} 6. Ngf3 {[%emt 0:00:20]} Nf6 {[%emt 0:00:14] C08: French Tarrasch: 3...c5 4 exd5 exd5 sidelines} (6... Nc6 7. Bd3 cxd4 8. Nxd4 Nxd4 9. cxd4 Qe7+ 10. Qe2 {½-½ (10) Oratovsky,M (2467)-Roiz,M (2607) Ramat Gan 2018}) 7. Bd3 {[%emt 0:00:38]} Bd6 {[%emt 0:00:23]} 8. O-O {[%emt 0:00:48]} O-O {[%emt 0:00:09]} 9. dxc5 {[%emt 0:01:36]} Bxc5 {[%emt 0:00:20]} 10. h3 {[%emt 0:00:42]} Nc6 {[%emt 0:00:16]} 11. Nb3 {[%emt 0:00:16]} Bb6 $146 {[%emt 0:00:16]} ({Predecessor:} 11... Ba7 12. Re1 Bd7 13. Bc2 h6 14. Bf4 Re8 15. Qd3 Re4 16. Qd2 g5 17. Bxg5 hxg5 18. Qxg5+ {1-0 (60) Ibadov,D (2133)-Zhuk,V (2150) Ulan Ude 2015}) 12. Re1 {[%emt 0:02:59]} Qd6 {[%emt 0:00:36]} 13. Be3 {[%emt 0:04:23]} Bxe3 {[%emt 0:00:56]} 14. Rxe3 {[%emt 0:00:15]} Bd7 {[%emt 0:00:35]} 15. Qd2 {[%emt 0:06:49]} Rfe8 {[%emt 0:00:21]} 16. Rd1 {[%emt 0:03:14]} g6 {[%emt 0:06:58]} 17. Rxe8+ {[%emt 0:13:12]} Rxe8 {[%emt 0:00:20]} 18. Qh6 {[%emt 0:01:34]} Ne5 {[%emt 0:02:34]} 19. Nxe5 {[%emt 0:06:49]} Rxe5 {[%emt 0:01:10]} 20. Nd4 {[%emt 0:02:27]} Rh5 {[%emt 0:04:15]} 21. Qe3 {[%emt 0:06:18]} Re5 {[%emt 0:11:11]} 22. Qc1 {[%emt 0:03:25]} Kg7 {[%emt 0:06:56]} 23. Nf3 {[%emt 0:00:53]} Re7 {[%emt 0:00:45]} 24. Qg5 {[%emt 0:02:33]} h6 {[%emt 0:01:17]} 25. Qh4 {[%emt 0:01:15]} Qb6 $11 {[%emt 0:01:16]} 26. Rd2 {[%emt 0:03:50]} g5 {[%emt 0:02:10]} 27. Qd4 {[%emt 0:05:40]} Qxd4 {[%emt 0:00:48]} 28. cxd4 {[%emt 0:00:22]} Re8 {[%emt 0:01:31]} 29. Ne5 {[%emt 0:01:39]} Rc8 {[%emt 0:01:10]} 30. Rc2 {[%emt 0:00:12]} Rxc2 {[%emt 0:00:46]} 31. Bxc2 {[%emt 0:00:02]} Be6 {[%emt 0:01:18]} 32. Kf1 {[%emt 0:01:05]} Nd7 {[%emt 0:00:59]} 33. Nf3 {[%emt 0:02:02]} Kf8 {[%emt 0:00:56]} 34. Ke1 {[%emt 0:00:40]} Ke7 {[%emt 0:00:29]} 35. Kd2 {[%emt 0:00:26]} Kd6 {[%emt 0:00:49]} 36. h4 {[%emt 0:00:27]} f6 {[%emt 0:02:17]} 37. b4 {[%emt 0:01:06]} Nb8 {[%emt 0:03:56]} 38. Kc3 {[%emt 0:01:25]} Nc6 {[%emt 0:00:49]} 39. g3 {[%emt 0:00:26]} Bd7 {[%emt 0:05:28]} 40. Nd2 {[%emt 0:02:18]} Ne7 {[%emt 0:01:19]} 41. Nf1 {[%emt 0:30:57]} Bf5 {[%emt 0:31:47]} 42. hxg5 {[%emt 0:01:00]} hxg5 {[%emt 0:00:28]} 43. Bb3 {[%emt 0:00:32]} Be6 {[%emt 0:00:31]} 44. Bc2 {[%emt 0:00:27]} Bf5 {[%emt 0:00:27]} 45. Bd1 {[%emt 0:00:28]} Be6 {[%emt 0:00:32]} 46. Nd2 {[%emt 0:00:22]} Bd7 {[%emt 0:00:51]} 47. Be2 {[%emt 0:00:58]} Bb5 {[%emt 0:02:04]} 48. Bf3 {[%emt 0:00:34]} Ba4 {[%emt 0:00:58]} 49. Bg4 {[%emt 0:00:19]} Bd7 {[%emt 0:00:26]} 50. Bd1 {[%emt 0:00:26]} Bb5 {[%emt 0:00:29]} 51. a4 {[%emt 0:00:19]} Bd7 {[%emt 0:00:20]} 52. a5 {[%emt 0:00:36]} Bb5 {[%emt 0:00:59]} 53. Nf3 {[%emt 0:01:03]} Bd7 {[%emt 0:01:13]} 54. Nd2 {[%emt 0:00:11]} Bb5 {[%emt 0:00:14]} 55. Bh5 {[%emt 0:00:37]} Ba4 {[%emt 0:00:30]} 56. Nf1 {[%emt 0:01:05]} Bd7 {[%emt 0:00:21]} 57. Ne3 {[%emt 0:00:25]} Be6 {[%emt 0:01:20]} 58. Ng2 {[%emt 0:01:02]} Bh3 {[%emt 0:01:18]} 59. Ne1 {[%emt 0:00:12]} Bf5 {[%emt 0:00:20]} 60. Nf3 {[%emt 0:00:55]} Bd7 {[%emt 0:00:34]} 61. Nd2 {[%emt 0:00:52]} Ba4 {[%emt 0:00:18]} 62. Bf7 {[%emt 0:00:20]} Nf5 {[%emt 0:01:24]} 63. Bg6 {[%emt 0:01:44]} Ne7 {[%emt 0:00:13]} 64. Bh7 {[%emt 0:00:34]} Nc8 {[%emt 0:00:38]} 65. Nf1 {[%emt 0:00:19]} Bd7 {[%emt 0:00:40]} 66. Bc2 {[%emt 0:01:37]} Na7 {[%emt 0:03:08]} 67. Kd2 {[%emt 0:01:31]} Nc6 {[%emt 0:00:39]} 68. Kc3 {[%emt 0:00:14]} Na7 {[%emt 0:00:16]} 69. Ne3 {[%emt 0:01:10]} Nc8 {[%emt 0:03:21]} 70. Bb3 {[%emt 0:01:04]} Ne7 {[%emt 0:00:18]} 71. Bc2 {[%emt 0:00:36]} Be6 {[%emt 0:00:37]} 72. Nd1 {[%emt 0:00:47]} Bf5 {[%emt 0:01:12]} 73. Bb3 {[%emt 0:00:12]} Nc8 {[%emt 0:01:27]} 74. Ne3 {[%emt 0:01:39]} Be6 {[%emt 0:00:19]} 75. Ba4 {[%emt 0:00:24]} Ne7 {[%emt 0:00:36]} 76. b5 {[%emt 0:02:11]} Bd7 {[%emt 0:02:44]} 77. Kb4 {[%emt 0:00:28]} axb5 {[%emt 0:02:15]} 78. Bxb5 {[%emt 0:00:12]} Be6 {[%emt 0:02:40]} 79. Be8 {[%emt 0:00:35]} Nc6+ {[%emt 0:05:03]} 80. Bxc6 {[%emt 0:05:47]} Kxc6 {[%emt 0:00:38]} 81. Nd1 {[%emt 0:00:42]} Bf5 {[%emt 0:03:23]} 82. Nc3 {[%emt 0:00:16]} Bd3 {[%emt 0:00:45]} 83. Na4 {[%emt 0:00:14]} Bf5 {[%emt 0:02:38]} 84. f4 {[%emt 0:00:41]} gxf4 {[%emt 0:00:43]} 85. gxf4 {[%emt 0:00:02]} Bg4 {[%emt 0:00:50]} 86. Nc5 {[%emt 0:02:39]} Bc8 {[%emt 0:00:34]} 87. Ka4 {[%emt 0:01:24]} b6 {[%emt 0:01:13]} 88. Nb3 {[%emt 0:00:28]} bxa5 {[%emt 0:01:22]} 89. Kxa5 {[%emt 0:00:09]} Kd6 {[%emt 0:01:22]} 90. Nc5 {[%emt 0:01:00]} Kc6 {[%emt 0:00:59]} 91. Nd3 {[%emt 0:00:16]} Bf5 {[%emt 0:01:02]} 92. Nb4+ {[%emt 0:00:14]} Kd6 {[%emt 0:00:17]} 93. Kb6 {[%emt 0:00:20]} Bd7 {[%emt 0:00:43]} 94. Nd3 {[%emt 0:00:43]} Bg4 {[%emt 0:02:11]} 95. Nc5 {[%emt 0:00:14]} Bf3 {[%emt 0:00:43]} 96. Kb7 {[%emt 0:03:00]} Bg4 {[%emt 0:01:19]} 97. Kb6 {[%emt 0:01:30]} Bf3 {[%emt 0:00:17]} 98. Kb5 {[%emt 0:02:20]} Be2+ {[%emt 0:00:58]} 99. Kb6 {[%emt 0:00:08]} Bf3 {[%emt 0:00:15]} 100. Kb7 {[%emt 0:00:15]} Bg4 {[%emt 0:00:18]} 101. Kb6 {[%emt 0:01:08]} Bf3 {[%emt 0:00:22]} 102. Na6 {[%emt 0:00:44]} Ke6 {[%emt 0:00:35]} 103. Kc5 {[%emt 0:00:27]} Kf5 {[%emt 0:00:39]} 104. Nc7 {[%emt 0:00:21]} Kxf4 {[%emt 0:00:33]} 105. Nxd5+ {[%emt 0:00:10]} Bxd5 {[%emt 0:03:17]} 106. Kxd5 {[%emt 0:00:12]} f5 {[%emt 0:00:25]} 107. Kc6 {[%emt 0:01:31]} Ke3 {[%emt 0:00:22]} 1/2-1/2

[Event "23rd Alekhine FIDE 2019"]
[Site "Voronezh"]
[Date "2019.06.15"]
[Round "4.10"]
[White "Peschansky, Mikhail"]
[Black "Ershova, Sofya"]
[Result "1-0"]
[ECO "A11"]
[WhiteElo "2075"]
[BlackElo "1798"]
[Annotator "NA"]
[PlyCount "101"]
[EventDate "2019.06.12"]
[EventType "swiss"]
[EventCountry "RUS"]
[SourceTitle "playchess.com"]
[Source "ChessBase"]
[SourceQuality "1"]
[TimeControl "40/5400+30:1800+30"]

1. c4 {[%emt 0:00:00]} c6 {[%emt 0:01:06]} 2. Nf3 {[%emt 0:02:14]} d5 {[%emt 0:00:08]} 3. d4 {[%emt 0:02:16]} dxc4 {[%emt 0:00:08]} 4. g3 {[%emt 0:08:14]} Nd7 {[%emt 0:02:53]} 5. Bg2 {[%emt 0:01:21]} Ngf6 {[%emt 0:01:35]} 6. O-O {[%emt 0:03:39] D11: Slav Defence: 3 Nf3 sidelines and 3...Nf6 4 e3 Bg4} g6 {[%emt 0:01:21]} 7. Qc2 {[%emt 0:00:41]} Nb6 {[%emt 0:00:24]} 8. Nbd2 {[%emt 0:04:29]} Bg7 {[%emt 0:03:27]} 9. e3 $146 {[%emt 0:05:08]} ({Predecessor:} 9. Rd1 O-O 10. a4 a5 11. e4 Bg4 12. h3 Bxf3 13. Nxf3 {1-0 (24) Grischuk,A (2752)-Aronian,L (2784) chess.com INT 2016}) 9... Bf5 {[%emt 0:04:48]} 10. e4 {[%emt 0:01:30]} Be6 {[%emt 0:00:18]} 11. b3 {[%emt 0:06:42]} cxb3 {[%emt 0:01:08]} 12. Nxb3 {[%emt 0:01:01]} Bxb3 {[%emt 0:01:46]} 13. axb3 {[%emt 0:00:07]} O-O {[%emt 0:01:41]} 14. Bb2 {[%emt 0:00:46]} e6 {[%emt 0:10:48]} 15. Bc3 {[%emt 0:01:42]} Qe7 {[%emt 0:03:01]} 16. Rfe1 {[%emt 0:00:29]} Nfd7 {[%emt 0:01:44]} 17. Ra5 {[%emt 0:01:22]} Rfc8 {[%emt 0:07:35]} 18. Qa2 {[%emt 0:00:05]} a6 {[%emt 0:07:53]} 19. b4 {[%emt 0:00:12]} Rab8 {[%emt 0:01:31]} 20. Bd2 {[%emt 0:01:54]} e5 $15 {[%emt 0:07:02]} 21. dxe5 {[%emt 0:01:20]} Nxe5 {[%emt 0:00:53]} 22. Nxe5 {[%emt 0:00:07]} Bxe5 {[%emt 0:00:17]} 23. Be3 {[%emt 0:02:25]} Nd7 {[%emt 0:02:49]} 24. Rb1 {[%emt 0:03:33]} Rd8 {[%emt 0:05:30]} 25. Qb3 {[%emt 0:02:12]} Bc7 {[%emt 0:14:33]} 26. Bg5 {[%emt 0:00:44]} Nf6 {[%emt 0:01:00]} 27. e5 {[%emt 0:01:45]} Bxe5 {[%emt 0:00:33]} 28. Re1 {[%emt 0:00:16]} b5 {[%emt 0:00:47]} 29. Rxa6 {[%emt 0:03:24]} Rd6 {[%emt 0:05:31]} 30. Ra2 {[%emt 0:02:25]} Qe6 {[%emt 0:07:02]} 31. Qxe6 {[%emt 0:03:32]} Rxe6 {[%emt 0:00:16]} 32. Bh3 {[%emt 0:03:34]} Bc3 {[%emt 0:04:46]} 33. Rc1 {[%emt 0:00:48]} Re1+ {[%emt 0:01:20]} 34. Rxe1 {[%emt 0:00:14]} Bxe1 {[%emt 0:00:01]} 35. Bxf6 {[%emt 0:00:18]} Bxb4 {[%emt 0:00:03]} 36. Bd7 {[%emt 0:00:21]} Bf8 {[%emt 0:01:31]} 37. Bxc6 {[%emt 0:00:46]} b4 {[%emt 0:00:44]} 38. Ra8 {[%emt 0:01:02]} Rxa8 {[%emt 0:00:05]} 39. Bxa8 {[%emt 0:00:05]} Bg7 {[%emt 0:00:07]} 40. Bxg7 {[%emt 0:03:43]} Kxg7 {[%emt 0:00:01]} 41. Bd5 {[%emt 0:30:09]} f5 {[%emt 0:30:34]} 42. f4 {[%emt 0:00:26]} h6 {[%emt 0:00:11]} 43. Kf2 {[%emt 0:00:32]} g5 {[%emt 0:00:06]} 44. Ke3 {[%emt 0:00:41]} Kf6 {[%emt 0:00:16]} 45. Kd4 {[%emt 0:00:06]} h5 {[%emt 0:00:21]} 46. Kc4 {[%emt 0:01:24]} h4 {[%emt 0:01:21]} 47. Kxb4 {[%emt 0:00:43]} Kg6 {[%emt 0:00:11]} 48. Bf3 {[%emt 0:00:25]} Kf6 {[%emt 0:00:37]} 49. Kc5 {[%emt 0:00:10]} hxg3 {[%emt 0:00:27]} 50. hxg3 {[%emt 0:00:04]} gxf4 {[%emt 0:00:29]} 51. gxf4 {[%emt 0:00:04]} 1-0

[Event "23rd Alekhine FIDE 2019"]
[Site "Voronezh"]
[Date "2019.06.15"]
[Round "4.11"]
[White "Kulpin, Dmitriy"]
[Black "Yakimenko, Alexander A."]
[Result "0-1"]
[ECO "E15"]
[WhiteElo "1950"]
[BlackElo "2072"]
[Annotator "NA"]
[PlyCount "64"]
[EventDate "2019.06.12"]
[EventType "swiss"]
[EventCountry "RUS"]
[SourceTitle "playchess.com"]
[Source "ChessBase"]
[SourceQuality "1"]
[TimeControl "40/5400+30:1800+30"]

1. d4 {[%emt 0:00:00]} e6 {[%emt 0:01:23]} 2. c4 {[%emt 0:00:06]} Nf6 {[%emt 0:00:09]} 3. Nf3 {[%emt 0:00:17]} b6 {[%emt 0:00:11]} 4. g3 {[%emt 0:00:13]} Ba6 {[%emt 0:00:05]} 5. Qc2 {[%emt 0:02:11]} Bb4+ {[%emt 0:01:46]} 6. Bd2 {[%emt 0:01:35]} Be7 {[%emt 0:00:37]} 7. Bg2 {[%emt 0:00:22]} O-O {[%emt 0:00:17]} 8. O-O {[%emt 0:01:07]} c6 {[%emt 0:04:31]} 9. Bf4 {[%emt 0:04:41]} Nh5 {[%emt 0:01:52]} 10. Bc1 {[%emt 0:04:20]} d5 {[%emt 0:05:26]} 11. Nbd2 {[%emt 0:03:07]} Nd7 {[%emt 0:03:22]} 12. Rd1 {[%emt 0:06:00]} Rc8 {[%emt 0:10:54]} 13. Qb3 {[%emt 0:18:41]} f5 {[%emt 0:11:37]} 14. Qe3 {[%emt 0:10:18]} Rf6 {[%emt 0:01:11]} 15. b3 {[%emt 0:09:32]} Bd6 $11 {[%emt 0:05:10]} 16. Qc3 {[%emt 0:10:03]} Rf8 {[%emt 0:04:17]} 17. Ne5 {[%emt 0:05:34]} f4 {[%emt 0:10:13]} 18. Ndf3 {[%emt 0:03:31]} fxg3 {[%emt 0:04:16]} 19. hxg3 {[%emt 0:00:08]} Nxe5 {[%emt 0:01:28]} 20. dxe5 {[%emt 0:02:20]} Bc5 {[%emt 0:02:05]} 21. Be3 {[%emt 0:03:34]} Qe7 {[%emt 0:02:39]} 22. Rac1 {[%emt 0:04:13]} g6 {[%emt 0:07:02]} 23. Bh3 {[%emt 0:01:44]} Ng7 {[%emt 0:07:22]} 24. Bg5 {[%emt 0:02:58]} Rxf3 {[%emt 0:03:22]} 25. Qxf3 {[%emt 0:02:28]} Qxg5 {[%emt 0:00:15]} 26. Qf6 {[%emt 0:02:20]} Qxg3+ {[%emt 0:00:57]} 27. Bg2 {[%emt 0:00:44]} Rf8 {[%emt 0:00:40]} 28. Rd3 {[%emt 0:01:04]} Qxf2+ {[%emt 0:04:09]} 29. Qxf2 {[%emt 0:00:23]} Rxf2 {[%emt 0:00:38]} 30. e3 {[%emt 0:00:44]} Rxa2 {[%emt 0:01:21]} 31. Bh3 {[%emt 0:00:09]} Nf5 {[%emt 0:00:46]} 32. Bxf5 {[%emt 0:00:04]} gxf5 {[%emt 0:00:14]} 0-1